bitfinex-derivatives/quotes_ETHF0:USTF0_20251203
["timestamp","ask_amount","ask_price","bid_price","bid_amount"]
[1764770947685,0.00370694,3040.2,3040.1,3.2078]
[1764770947889,3.2078,3041.2,3040.1,3.2078]
[1764770948083,0.0049282,3040.5,3040.0,4.5011]
[1764770948286,0.0049282,3040.5,3040.4,3.2078]
[1764770948791,3.2078,3042.0,3040.4,9.2078]
[1764770949093,3.2078,3042.0,3041.3,3.2078]
[1764770949290,0.16438,3041.1,3040.1,3.2078]
[1764770949488,3.2078,3040.7,3040.0,3.2078]
[1764770949684,3.2127282,3040.7,3040.0,3.2127282]
[1764770949880,3.21624727,3040.7,3040.0,0.0049282]
[1764770950189,3.2078,3040.3,3040.0,0.0049282]
[1764770950689,3.2078,3040.3,3040.0,1e-08]
[1764770950892,3.21624727,3040.7,3040.0,3.20780001]
[1764770951290,3.21624727,3040.7,3040.0,1e-08]
[1764770951588,3.2078,3040.3,3040.0,1e-08]
[1764770951796,0.00844727,3040.7,3040.2,3.2078]
[1764770952384,0.00844727,3040.7,3040.0,1e-08]
[1764770952589,0.00844727,3040.7,3040.2,3.2078]
[1764770952984,0.00844727,3040.7,3040.6,3.2078]
[1764770953687,0.00844727,3040.7,3040.2,3.2078]
[1764770954497,3.2078,3040.4,3040.0,1e-08]
[1764770954893,0.00844727,3040.7,3040.0,1e-08]
[1764770955096,3.2078,3040.4,3040.0,1e-08]
[1764770958102,3.2078,3040.8,3040.2,3.2078]
[1764770958291,1.69041453,3042.1,3040.7,3.2078]
[1764770958494,1.69041453,3042.1,3041.2,3.2078]
[1764770958495,1.2370904,3041.9,3041.2,3.2078]
[1764770958690,3.2078,3041.7,3040.4,3.2078]
[1764770958889,3.2078,3041.0,3040.2,4.31219924]
[1764770959094,3.2078,3040.5,3040.0,1e-08]
[1764770959295,0.0049282,3040.9,3040.0,1e-08]
[1764770959595,1.23727408,3040.8,3040.0,1e-08]
[1764770959791,1.23727408,3040.7,3040.0,1e-08]
[1764770959995,3.2078,3040.1,3040.0,1e-08]
[1764770960196,3.2078,3040.1,3039.3,3.21020506]
[1764770960197,0.16445,3039.8,3039.3,0.00240506]
[1764770960393,3.2078,3039.5,3039.3,0.00240506]
[1764770960597,0.16446,3039.7,3039.3,0.00240506]
[1764770960598,4.04835481,3039.4,3039.3,0.00240506]
[1764770960898,7.56334999,3039.4,3038.5,3.2078]
[1764770961101,3.2078,3038.8,3037.9,3.2078]
[1764770961298,6.32749423,3038.8,3037.5,3.2078]
[1764770961499,40.8,3038.7,3037.5,3.2078]
[1764770961699,40.8,3038.7,3038.0,3.2078]
[1764770962001,0.00284978,3038.7,3038.1,3.2078]
[1764770962603,0.00284978,3038.7,3038.1,3.21273689]
[1764770963006,0.00284978,3038.7,3038.2,4.5011]
[1764770963191,0.00284978,3038.7,3038.6,3.2078]
[1764770963393,3.2078,3039.2,3038.6,3.2078]
[1764770964197,3.2078,3039.2,3038.2,7.7089]
[1764770964402,3.21134417,3039.2,3038.3,3.2078]
[1764770964807,3.21134417,3039.2,3038.7,3.2078]
[1764770965005,0.00354417,3039.2,3039.1,3.2078]
[1764770965197,4.417e-05,3039.2,3039.1,3.2078]
[1764770965401,0.0049282,3039.4,3039.1,3.2078]
[1764770966303,0.00847625,3039.4,3039.1,3.2078]
[1764770966505,1.69041453,3040.5,3039.3,4.5011]
[1764770966707,1.2349649,3040.4,3039.6,3.2078]
[1764770966906,0.84025147,3040.3,3040.0,3.2078]
[1764770967203,0.84025147,3040.2,3039.6,3.2078]
[1764770967400,3.2078,3040.6,3039.6,3.2078]
[1764770967401,0.84025147,3040.1,3039.6,3.2078]
[1764770967595,3.2078,3041.0,3040.0,7.7089]
[1764770967907,1.22530388,3040.9,3040.0,7.7089]
[1764770968210,3.2078,3040.6,3040.0,4.5011]
[1764770968507,1.22530388,3040.5,3039.6,3.2078]
[1764770968705,1.23024077,3040.4,3039.6,3.2078]
[1764770969003,0.00493689,3040.4,3040.1,3.2078]
[1764770969203,1.69041453,3041.9,3041.0,4.5011]
[1764770969410,2.87650756,3042.6,3041.5,3.2078]
[1764770969411,3.2078,3042.6,3041.5,3.2078]
[1764770969596,0.39518689,3042.5,3042.0,7.7089]
[1764770970304,0.39518689,3042.5,3042.0,7.71144732]
[1764770970305,0.39755664,3042.5,3042.0,7.71144732]
[1764770970511,3.2078,3043.1,3042.4,3.2078]
[1764770971508,3.21056146,3043.1,3042.4,3.2078]
[1764770971699,0.00769835,3043.1,3042.8,3.2078]
[1764770974008,0.00769835,3043.1,3042.3,3.2078]
[1764770974313,0.16432,3042.3,3042.0,0.00254732]
[1764770974510,3.2078,3042.2,3042.0,0.00254732]
[1764770975111,5.50307821,3042.2,3042.0,0.00254732]
[1764770975407,2.27725392,3042.1,3042.0,0.00254732]
[1764770975804,5.48505392,3042.2,3042.0,0.00254732]
[1764770976001,2.27725392,3042.7,3042.0,4.29594732]
[1764770976206,2.27725392,3042.8,3042.4,3.2078]
[1764770976714,3.21549835,3043.1,3042.4,3.2078]
[1764770977416,3.21549835,3043.1,3042.0,4.29594732]
[1764770977606,3.21549835,3043.1,3042.3,3.2078]
[1764770977803,5.49275227,3043.1,3042.3,3.2078]
[1764770978003,3.21549835,3043.1,3042.7,3.2078]
[1764770978814,0.00769835,3043.1,3043.0,4.5791]
[1764770979013,3.2078,3043.9,3043.0,4.5791]
[1764770979310,2.27725392,3044.1,3043.6,3.2078]
[1764770979509,2.27725392,3044.3,3043.6,3.2078]
[1764770979709,2.27725392,3044.4,3044.0,7.7869]
[1764770979910,4.00682663,3045.0,3044.0,7.7869]
[1764770980110,4.00682663,3045.0,3044.2,0.0049287]
[1764770980111,0.00319001,3044.8,3044.2,0.0049287]
[1764770980310,3.2078,3045.9,3045.0,4.5791]
[1764770980519,3.2078,3046.4,3045.5,3.2078]
[1764770981316,3.21201225,3046.4,3045.5,3.2078]
[1764770981515,3.2078,3046.0,3045.5,3.2078]
[1764770981816,3.2078,3045.8,3045.1,3.2078]
[1764770982014,0.00421225,3046.4,3045.7,3.2078]
[1764770982321,0.00421225,3046.4,3045.7,3.2127287]
[1764770982704,3.2078,3046.1,3045.7,0.0049287]
[1764770982910,0.37687423,3046.0,3045.7,0.0049287]
[1764770983711,0.37687423,3046.0,3045.8,3.2078]
[1764770983912,0.37687423,3045.9,3045.8,3.2078]
[1764770984117,0.00421225,3046.4,3045.8,3.2078]
[1764770984321,3.2078,3047.2,3046.3,3.2078]
[1764770985017,3.2078,3047.2,3046.8,3.2078]
[1764770985216,3.2078,3048.1,3046.8,3.2078]
[1764770985419,3.21167547,3048.1,3047.2,3.2078]
[1764770985720,0.00387547,3048.1,3047.7,3.2078]
[1764770985916,3.2078,3049.0,3048.0,4.5791]
[1764770986122,3.2078,3049.4,3048.4,3.2078]
[1764770986324,3.2078,3049.0,3048.6,0.00492045]
[1764770986625,0.16398,3048.6,3047.4,3.2078]
[1764770986809,3.2078,3048.2,3047.0,7.7869]
[1764770987117,3.21010839,3048.2,3047.4,3.2078]
[1764770987619,3.21010839,3048.2,3047.5,4.25727935]
[1764770987620,0.00489297,3048.1,3047.5,4.25727935]
[1764770987817,0.00489297,3048.1,3047.5,0.00492045]
[1764770988011,0.00489297,3048.1,3047.8,3.2078]
[1764770989314,0.00489297,3048.1,3047.5,0.00492045]
[1764770990119,0.00489297,3048.1,3047.9,3.2078]
[1764770990320,3.2078,3049.4,3048.0,4.5791]
[1764770990623,3.2078,3049.5,3048.2,3.2078]
[1764770991023,3.2078,3049.0,3048.2,3.2078]
[1764770991215,3.21033251,3049.0,3048.0,4.5791]
[1764770991409,3.21033251,3049.0,3047.8,3.2078]
[1764770991916,3.2078,3048.6,3047.8,3.2078]
[1764770992426,0.00253251,3049.0,3048.3,3.2078]
[1764770992923,3.2078,3049.4,3048.7,3.2078]
[1764770993127,3.2078,3050.0,3049.2,3.2078]
[1764770993421,3.2078,3050.0,3049.3,0.00492045]
[1764770993622,3.2078,3049.6,3049.3,0.00492045]
[1764770993816,3.2078,3050.0,3049.3,0.00492045]
[1764770994013,3.2078,3049.8,3049.3,0.00740314]
[1764770994215,3.2078,3049.7,3049.3,0.00740314]
[1764770994429,1.68725004,3049.6,3048.0,7.7869]
[1764770994623,3.2078,3049.7,3048.6,3.2078]
[1764770994823,3.2078,3049.3,3048.6,3.2078]
[1764770995018,3.2078,3049.7,3048.6,3.2078]
[1764770995417,0.00492045,3049.5,3048.8,0.00492045]
[1764770996323,3.21272045,3049.5,3048.8,0.00492045]
[1764770996518,0.00492045,3049.5,3048.8,0.00492045]
[1764770997010,0.00492045,3049.5,3049.1,3.2078]
[1764770997420,0.00492045,3049.5,3048.8,0.00492045]
[1764770997628,3.2078,3049.2,3048.8,0.00492045]
[1764770998325,4.6279,3049.0,3048.5,3.06569701]
[1764770998630,4.6279,3049.0,3047.0,4.5791]
[1764770998631,3.2078,3048.8,3048.1,3.2078]
[1764770999122,0.16398,3048.5,3048.1,3.2078]
[1764770999325,3.2078,3048.3,3048.1,0.00406134]
[1764771000226,2.0566,3048.0,3046.7,3.2078]
[1764771000432,2.0566,3048.0,3044.5,5.92142477]
[1764771000433,4.6279,3047.0,3045.9,3.2078]
[1764771000722,4.6279,3047.0,3045.0,6.34018547]
[1764771000723,7.8357,3046.0,3044.7,0.87255831]
[1764771000925,7.8357,3046.0,3044.2,3.2078]
[1764771000926,5.81683256,3045.6,3044.2,3.2078]
[1764771001227,3.2078,3044.4,3044.2,0.00363616]
[1764771001528,3.2078,3044.4,3043.4,4.96888547]
[1764771001529,5.81683256,3044.4,3043.4,3.2078]
[1764771001721,5.81683256,3044.4,3044.0,0.00492045]
[1764771002120,3.2078,3044.4,3044.0,0.00492045]
[1764771002318,3.2078,3044.8,3044.0,0.0079824]
[1764771002820,3.2078,3044.4,3044.0,0.0079824]
[1764771003026,3.2078,3044.8,3044.0,0.0079824]
[1764771003227,3.2078,3044.4,3043.1,3.2078]
[1764771003527,2.60903256,3044.5,3043.5,3.2078]
[1764771003719,3.2078,3044.8,3043.9,3.2078]
[1764771003921,5.81932273,3045.6,3044.7,3.2078]
[1764771004126,3.21029017,3045.6,3044.7,3.2078]
[1764771004328,0.00492877,3045.5,3044.8,0.00492877]
[1764771004833,0.00492877,3045.5,3045.1,3.2078]
[1764771005223,0.00249017,3045.6,3045.1,3.2078]
[1764771005422,3.2078,3046.7,3045.5,3.2078]
[1764771005623,3.2078,3046.7,3046.0,3.2078]
[1764771005822,2.60903256,3046.2,3045.4,3.2078]
[1764771006128,3.2078,3045.5,3045.0,3.2078]
[1764771006429,0.00276273,3045.5,3045.4,3.2078]
[1764771007028,16.2318,3046.7,3045.4,3.2078]
[1764771007227,3.2078,3047.1,3046.0,3.2078]
[1764771007428,3.2078,3046.7,3045.5,3.2078]
[1764771007626,2.60903256,3046.8,3046.0,3.2078]
[1764771007928,2.60903256,3046.8,3046.4,3.2078]
[1764771007929,0.00492877,3046.7,3046.4,3.2078]
[1764771008122,0.00492877,3046.7,3046.5,0.85912127]
[1764771008320,0.00492877,3046.7,3046.6,0.85912127]
[1764771009230,1.68725004,3047.5,3046.6,0.85912127]
[1764771009437,0.33666885,3047.4,3047.0,3.2078]
[1764771009728,0.33677575,3047.3,3047.1,0.85912127]
[1764771009926,1.68725004,3047.9,3047.2,0.85912127]
[1764771010228,1.68725004,3048.0,3047.8,3.2078]
[1764771010426,0.34508799,3047.9,3047.8,3.2078]
[1764771010629,1.68725004,3048.6,3048.0,4.1939]
[1764771010927,3.2078,3050.0,3048.5,4.08035831]
[1764771011130,3.2078,3050.0,3049.3,3.2078]
[1764771011323,3.2078,3050.4,3049.7,3.2078]
[1764771011637,3.2078,3050.0,3049.7,0.00783916]
[1764771011831,3.2078,3050.1,3049.7,0.00783916]
[1764771012126,3.21120275,3050.4,3049.7,0.00783916]
[1764771012524,3.2078,3050.0,3049.4,3.2078]
[1764771012724,5.81683256,3050.3,3049.0,4.08035831]
[1764771012933,3.2078,3050.3,3049.4,3.2078]
[1764771013227,5.81683256,3050.3,3049.0,0.87255831]
[1764771013430,0.00489306,3050.0,3049.3,0.00492053]
[1764771013638,3.2078,3049.8,3049.3,0.00492053]
[1764771013932,3.21269306,3050.0,3049.4,3.2078]
[1764771014131,3.2078,3049.6,3049.3,0.00492053]
[1764771014434,5.81683256,3049.7,3049.0,0.00238264]
[1764771014629,9.76823256,3049.2,3048.1,4.08035831]
[1764771014819,9.76823256,3049.2,3048.2,0.90795121]
[1764771015019,3.2078,3049.2,3048.6,3.2078]
[1764771015220,3.2078,3049.2,3048.7,0.90796336]
[1764771015422,3.2078,3049.2,3048.8,0.90789303]
[1764771015628,0.00489306,3050.0,3049.1,4.08035831]
[1764771015629,3.2078,3049.9,3049.1,4.08035831]
[1764771015822,0.00489306,3050.0,3049.2,1.78045134]
[1764771016023,0.00489306,3050.0,3049.5,3.2078]
[1764771016230,3.2078,3049.9,3049.3,0.87255831]
[1764771016525,2.60903256,3049.4,3048.6,0.00492053]
[1764771016922,2.60903256,3048.8,3048.1,3.2078]
[1764771017125,2.60903256,3048.6,3048.1,3.2078]
[1764771017330,3.2078,3048.8,3048.1,3.21166283]
[1764771017530,9.17963256,3049.2,3048.5,3.2078]
[1764771017732,2.60903256,3049.2,3048.5,3.2078]
[1764771018132,2.60903256,3049.2,3048.5,3.21272053]
[1764771018432,3.2078,3049.7,3048.5,3.21272053]
[1764771018625,43.40903256,3049.8,3048.5,3.21272053]
[1764771018827,3.2078,3049.7,3048.5,3.21272053]
[1764771019031,3.2078,3049.3,3048.5,3.21272053]
[1764771019227,3.2078,3049.0,3048.5,3.21272053]
[1764771019434,5.81683256,3049.2,3048.5,3.21272053]
[1764771019738,3.2078,3048.8,3048.5,0.00492053]
[1764771019927,2.60903256,3048.6,3048.1,0.00386283]
[1764771020119,3.2078,3048.2,3048.1,0.00386283]
[1764771020324,0.00356239,3048.2,3048.1,3.21166283]
[1764771020520,0.00356239,3048.2,3048.1,0.00386283]
[1764771020834,0.00356239,3048.2,3047.3,3.2078]
[1764771021030,0.00492053,3048.1,3047.4,0.00492053]
[1764771021333,0.00492053,3048.1,3047.7,3.2078]
[1764771021532,0.00492053,3048.1,3047.4,0.00492053]
[1764771021734,0.00492053,3048.1,3047.8,3.2078]
[1764771022126,0.00492053,3048.1,3047.4,3.21644041]
[1764771022730,0.3199296,3048.0,3047.4,3.21644041]
[1764771022930,0.3199296,3047.9,3047.8,3.2078]
[1764771023430,0.28415121,3048.0,3047.8,9.2078]
[1764771023636,0.28415121,3047.9,3047.8,3.2078]
[1764771024332,3.2078,3049.5,3048.0,4.1939]
[1764771024637,3.2078,3049.5,3048.8,3.2078]
[1764771024832,3.2078,3049.6,3048.8,3.2078]
[1764771025028,16.91303256,3049.8,3048.8,3.2078]
[1764771025229,2.60903256,3049.8,3048.8,3.2078]
[1764771025540,3.37664053,3049.6,3049.0,0.00492053]
[1764771025728,3.2078,3049.4,3049.0,0.00492053]
[1764771026126,2.60903256,3049.2,3048.4,3.2078]
[1764771026438,3.2078,3048.8,3048.3,3.2078]
[1764771026932,0.16397,3048.8,3048.3,3.2078]
[1764771027133,14.46297,3048.8,3048.3,3.2078]
[1764771027341,3.2078,3048.5,3048.2,0.00492053]
[1764771027631,2.77301256,3048.6,3048.2,0.00492053]
[1764771027632,5.98081256,3048.6,3048.2,0.00492053]
[1764771028143,5.98081256,3048.6,3047.4,3.21151988]
[1764771028144,0.164,3048.3,3047.4,3.21151988]
[1764771028330,3.2078,3048.2,3047.4,3.21151988]
[1764771028934,0.164,3048.3,3047.4,3.21151988]
[1764771029135,40.8,3048.2,3047.4,3.21151988]
[1764771029332,40.8,3048.2,3048.0,3.2078]
[1764771029630,14.296,3048.7,3048.1,0.92284483]
[1764771029836,3.2078,3048.6,3048.0,3.2078]
[1764771030030,0.16399,3048.4,3047.6,3.2078]
[1764771030227,0.16399,3048.4,3047.7,0.92395844]
[1764771030431,0.16399,3048.4,3047.8,0.92419282]
[1764771030632,0.16399,3048.4,3047.6,3.2078]
[1764771030832,3.2078,3048.3,3047.7,0.9241529]
[1764771031136,3.2078,3048.3,3047.8,0.9241529]
[1764771031441,3.2078,3048.3,3047.5,0.00492053]
[1764771031635,3.2078,3047.9,3047.6,0.92434181]
[1764771031949,0.00492053,3048.1,3047.7,0.92434181]
[1764771032238,0.00492053,3048.1,3047.8,4.13214181]
[1764771032531,0.00492053,3048.1,3047.9,0.92434181]
[1764771032842,0.00492053,3048.1,3047.8,3.2078]
[1764771033138,0.00492053,3048.1,3047.9,0.92451161]
[1764771033432,0.00492053,3048.1,3047.8,3.2078]
[1764771033739,0.00492053,3048.1,3047.9,0.92454287]
[1764771034034,3.2078,3048.7,3048.0,0.92454287]
[1764771034337,0.16394,3049.3,3048.3,3.2078]
[1764771034338,3.2078,3049.1,3048.3,3.2078]
[1764771034531,3.2078,3049.1,3048.4,0.92454287]
[1764771034735,3.2078,3049.1,3048.3,3.2078]
[1764771034937,44.0078,3049.2,3048.4,0.92458164]
[1764771035138,0.00492053,3049.1,3048.3,3.2078]
[1764771035336,0.00492053,3049.1,3048.7,3.2078]
[1764771035536,0.00492053,3049.1,3048.8,0.94154059]
[1764771035836,0.00492053,3049.1,3048.7,3.2078]
[1764771036036,0.00492053,3049.1,3048.8,0.94152083]
[1764771036236,0.00492053,3049.1,3048.9,0.94152083]
[1764771036437,0.00492053,3049.1,3049.0,0.94152083]
[1764771037336,0.00422134,3049.8,3049.0,0.94152083]
[1764771037337,3.2078,3049.6,3049.0,11.29140408]
[1764771037533,0.00422134,3049.8,3049.5,4.37752634]
[1764771037733,0.00422134,3049.8,3049.6,0.94152083]
[1764771038039,0.00422134,3049.8,3049.6,0.00378812]
[1764771038432,3.2078,3051.2,3049.7,0.94328748]
[1764771038632,2.60903256,3050.9,3050.5,3.2078]
[1764771038836,2.60903256,3050.9,3049.8,0.94328748]
[1764771038837,3.37166,3050.8,3050.1,3.2078]
[1764771039138,11.965,3050.7,3050.1,3.2078]
[1764771039327,0.16386,3050.8,3050.5,3.2078]
[1764771039533,0.0030315,3050.8,3050.5,3.2078]
[1764771040438,0.0030315,3050.8,3050.1,3.2078]
[1764771040631,16.63189256,3050.7,3050.1,3.2078]
[1764771040836,14.02286,3050.7,3050.1,3.2078]
[1764771041239,0.0030315,3050.8,3050.6,3.2078]
[1764771041541,0.0030315,3050.8,3049.6,1.33743446]
[1764771041542,0.0030315,3050.8,3050.2,3.2078]
[1764771041743,3.2108315,3050.8,3050.2,3.2078]
[1764771042041,0.0030315,3050.8,3050.2,3.2078]
[1764771042344,17.4858315,3050.8,3050.2,3.2078]
[1764771042737,14.2780315,3050.8,3050.2,3.2078]
[1764771042943,0.0030315,3050.8,3050.6,3.2078]
[1764771045541,3.2078,3052.1,3050.6,3.2078]
[1764771045742,11.807,3052.5,3051.4,3.2078]
[1764771046043,3.2078,3052.1,3051.3,3.2078]
[1764771046448,5.81683256,3051.6,3050.9,3.2078]
[1764771046643,5.82495005,3051.6,3051.0,0.9393056]
[1764771046954,3.21591749,3051.6,3050.9,3.21272053]
[1764771047345,0.00811749,3051.6,3050.9,3.21272053]
[1764771047649,14.27411749,3051.6,3050.9,3.21272053]
[1764771047843,17.48191749,3051.6,3050.9,3.21272053]
[1764771048542,0.00811749,3051.6,3051.3,3.2078]
[1764771049142,0.00811749,3051.6,3050.9,3.21272053]
[1764771049844,0.00811749,3051.6,3051.3,3.2078]
[1764771050646,1.749e-05,3051.6,3051.3,3.2078]
[1764771051344,1.749e-05,3051.6,3051.4,11.28502661]
[1764771051543,3.37151,3053.6,3051.7,3.20778251]
[1764771051746,3.2078,3054.1,3053.1,3.2078]
[1764771051940,3.2078,3054.1,3053.5,3.2078]
[1764771052245,3.2078,3054.5,3053.5,3.2078]
[1764771052646,0.00383813,3054.5,3054.1,3.2078]
[1764771052956,0.00383813,3054.5,3054.4,3.2078]
[1764771053141,17.65511132,3058.0,3054.4,3.2078]
[1764771053346,3.17230026,3056.2,3055.4,3.2078]
[1764771053644,3.17230026,3056.2,3053.7,3.7375]
[1764771053645,3.2078,3055.8,3055.0,0.00491183]
[1764771053850,0.1636,3055.7,3055.0,0.00491183]
[1764771054045,3.37142,3055.3,3055.0,1.183e-05]
[1764771054255,3.17230026,3055.5,3055.0,1.183e-05]
[1764771054441,0.16634405,3055.7,3055.0,1.183e-05]
[1764771054442,3.2078,3055.6,3055.0,1.183e-05]
[1764771054641,0.00274405,3055.7,3055.0,1.183e-05]
[1764771054850,0.00274405,3055.7,3055.6,3.2078]
[1764771057740,0.00274405,3055.7,3055.1,3.2078]
[1764771058144,0.00274405,3055.7,3055.0,1.183e-05]
[1764771058145,0.00274405,3055.7,3055.6,3.2078]
[1764771060143,0.00274405,3055.7,3055.4,3.2078]
[1764771060347,0.00274405,3055.7,3055.0,3.20781183]
[1764771060554,3.2078,3055.4,3055.0,3.20781183]
[1764771060749,3.37141,3055.4,3055.0,1.183e-05]
[1764771061154,3.2078,3055.4,3055.0,1.183e-05]
[1764771061453,0.00274405,3055.7,3055.2,3.2078]
[1764771061855,0.00274405,3055.7,3055.0,1.183e-05]
[1764771062150,3.2078,3055.5,3055.0,1.183e-05]
[1764771062449,0.16362,3055.3,3055.0,1.183e-05]
[1764771062655,0.16363,3055.1,3054.2,3.2078]
[1764771062847,0.16364,3054.9,3054.2,3.2078]
[1764771063042,3.5659,3054.6,3053.8,3.2078]
[1764771063243,3.3715,3053.9,3052.9,3.2078]
[1764771063451,3.5659,3054.0,3052.9,3.2078]
[1764771063452,3.17230026,3053.6,3052.9,3.2078]
[1764771063654,3.17230026,3053.6,3052.3,3.2078]
[1764771063852,0.16374,3053.1,3052.3,3.2078]
[1764771064055,40.8,3053.0,3052.3,3.2078]
[1764771064361,40.8,3053.0,3051.1,5.1493134]
[1764771064362,55.026,3053.0,3052.7,3.2078]
[1764771064654,55.03021336,3053.0,3052.7,0.004162]
[1764771064852,0.00421336,3053.0,3052.7,3.211962]
[1764771065365,6.77791336,3053.0,3052.7,0.004162]
[1764771065746,0.00421336,3053.0,3052.7,3.211962]
[1764771066149,0.00421336,3053.0,3052.7,0.004162]
[1764771066349,3.2078,3052.9,3052.7,0.004162]
[1764771066558,17.4318,3052.9,3052.7,0.004162]
[1764771067056,3.2078,3052.9,3052.7,0.004162]
[1764771067250,3.17230026,3052.8,3052.7,0.004162]
[1764771067453,3.17230026,3052.8,3051.5,4.37752634]
[1764771067752,14.223,3052.7,3051.9,3.2078]
[1764771067958,3.17230026,3052.2,3052.0,0.95734299]
[1764771068157,3.17230026,3052.2,3051.5,3.2078]
[1764771068357,6.7737,3052.0,3051.6,0.94951137]
[1764771068559,6.7737,3052.0,3051.7,0.94951137]
[1764771068862,14.222,3051.9,3051.5,3.21638455]
[1764771069060,14.222,3051.9,3051.6,0.94320253]
[1764771069251,3.17721209,3052.2,3051.7,0.94320253]
[1764771069459,3.17721209,3052.2,3051.8,0.94830609]
[1764771069660,0.00491183,3052.2,3051.9,5.32583243]
[1764771069855,0.00491183,3052.2,3052.0,0.94830609]
[1764771070057,0.00491183,3052.2,3052.1,0.94830609]
[1764771070255,3.5659,3052.0,3051.8,1.05640279]
[1764771070462,3.5659,3052.0,3051.5,3.21638455]
[1764771070761,6.38501209,3052.2,3051.5,3.21638455]
[1764771070963,6.38501209,3052.2,3052.0,3.2078]
[1764771070964,0.00491183,3052.2,3052.0,3.2078]
[1764771071558,3.2078,3052.9,3052.0,3.2078]
[1764771071758,11.81,3052.8,3052.4,3.2078]
[1764771071960,14.98230026,3052.8,3052.0,3.2078]
[1764771072259,40.80421336,3053.0,3052.4,3.2078]
[1764771072462,0.00421336,3053.0,3052.4,3.2078]
[1764771072765,0.00912519,3053.0,3052.8,3.2078]
[1764771073755,10.32,3053.4,3052.8,3.2078]
[1764771073956,6.73820026,3054.0,3053.3,3.2078]
[1764771074264,6.73820026,3054.6,3053.8,3.2078]
[1764771074459,12.552,3054.5,3054.2,3.2078]
[1764771074667,12.552,3054.5,3053.8,3.2078]
[1764771074864,40.8,3054.4,3053.8,3.21648803]
[1764771075370,14.217,3054.3,3053.8,3.21648803]
[1764771075867,3.5659,3053.7,3053.4,3.2078]
[1764771076363,14.215,3053.6,3053.0,3.2078]
[1764771076561,3.2078,3053.3,3052.8,0.87784683]
[1764771076753,3.2078,3053.3,3052.6,4.08564683]
[1764771076754,3.37153,3053.3,3052.6,4.08564683]
[1764771076969,0.16373,3053.3,3052.6,4.09477508]
[1764771077162,14.214,3053.2,3052.6,4.09477508]
[1764771077766,6.38010026,3053.5,3052.6,4.09477508]
[1764771077963,0.16369,3053.9,3053.4,3.2078]
[1764771078274,14.213,3053.5,3053.4,3.2078]
[1764771078573,13.213,3053.5,3053.1,0.87784683]
[1764771078866,13.213,3053.5,3053.2,0.87784683]
[1764771079068,13.213,3053.5,3052.7,0.87784683]
[1764771079069,0.16373,3053.2,3052.7,0.87784683]
[1764771079270,3.72965,3052.8,3052.6,3.21692825]
[1764771079573,14.211,3052.7,3052.6,3.21692825]
[1764771080069,14.21,3052.7,3052.6,3.21692825]
[1764771080377,40.8,3052.9,3052.6,3.21692825]
[1764771080569,0.00491183,3053.0,3052.8,0.87774494]
[1764771080867,14.96530026,3053.9,3052.8,3.5437]
[1764771080868,11.793,3053.9,3052.8,3.5437]
[1764771081061,11.793,3053.9,3053.6,3.2078]
[1764771081267,11.626,3054.2,3053.6,3.2078]
[1764771081477,0.16598672,3054.5,3054.0,3.2078]
[1764771081669,0.00232672,3054.5,3054.0,3.2078]
[1764771082378,0.16598672,3054.5,3054.0,3.2078]
[1764771082676,0.16367,3054.4,3054.0,3.2078]
[1764771082880,7.644,3054.3,3054.0,3.2078]
[1764771083171,14.20832672,3054.5,3054.0,3.2078]
[1764771083379,0.16367,3054.4,3053.9,0.1959]
[1764771083871,0.16367,3054.3,3053.9,0.1959]
[1764771084072,40.8,3054.3,3053.9,0.1959]
[1764771084377,0.16368,3054.2,3054.0,3.2078]
[1764771084582,14.20832672,3054.5,3054.0,3.2078]
[1764771084780,14.20832672,3054.5,3054.4,3.2078]
[1764771085083,3.5659,3054.4,3054.1,0.00491183]
[1764771085388,55.00432672,3054.5,3054.1,3.21271183]
[1764771086080,55.00332672,3054.5,3054.1,3.21271183]
[1764771086584,0.16372,3053.4,3053.3,4.08553432]
[1764771086783,14.36372,3053.4,3053.3,3.2078]
[1764771087089,0.16372,3053.4,3053.3,3.2078]
[1764771087292,14.36272,3053.4,3053.3,3.2078]
[1764771087782,0.16373,3053.1,3053.0,0.00491183]
[1764771087984,0.16373,3053.1,3053.0,0.94252215]
[1764771088389,40.96373,3053.1,3053.0,0.94252215]
[1764771089085,40.96373,3053.1,3053.0,0.00491183]
[1764771089489,55.15973,3053.1,3053.0,0.00491183]
[1764771089983,40.8,3053.1,3053.0,0.93575972]
[1764771090180,0.16367,3054.3,3053.0,6.93575972]
[1764771090379,13.276,3054.2,3054.0,3.2078]
[1764771090581,40.8,3054.1,3054.0,3.2078]
[1764771090780,0.00232672,3054.5,3054.0,4.12489969]
[1764771090981,11.793,3055.3,3054.4,3.2078]
[1764771091181,13.268,3054.7,3054.5,0.91709969]
[1764771091382,13.268,3054.7,3054.4,3.2078]
[1764771091584,13.268,3054.7,3054.5,0.91669278]
[1764771092089,0.00815761,3054.6,3054.5,0.91669278]
[1764771092289,0.00815761,3054.6,3054.4,3.2078]
[1764771092890,3.57405761,3054.6,3054.4,3.2078]
[1764771093191,0.00815761,3054.6,3054.4,3.2078]
[1764771093384,14.19,3054.5,3054.4,3.2078]
[1764771093886,0.00815761,3054.6,3054.4,3.2078]
[1764771094085,6.93731,3055.5,3054.4,9.2078]
[1764771094387,14.188,3055.4,3055.1,3.2078]
[1764771094586,40.8,3055.3,3055.1,3.2078]
[1764771095092,0.00372498,3055.3,3055.1,3.2110679]
[1764771096288,14.184,3055.2,3055.1,3.2110679]
[1764771096990,14.34762,3055.2,3055.1,3.2110679]
[1764771097190,14.34762,3055.2,3055.1,0.0032679]
[1764771097591,0.16363,3055.0,3054.9,0.00491183]
[1764771097794,14.34463,3055.0,3054.9,0.00491183]
[1764771098589,17.51693026,3055.0,3054.9,0.00835437]
[1764771099189,58.15330026,3055.0,3054.1,3.2078]
[1764771100095,0.16367,3054.3,3054.2,0.00491183]
[1764771100298,14.33967,3054.3,3054.2,0.00491183]
[1764771100700,0.16367,3054.3,3054.2,0.00491183]
[1764771100994,14.33867,3054.3,3054.2,0.00491183]
[1764771101195,0.00372498,3055.3,3054.4,3.1974]
[1764771101399,0.00372498,3055.3,3055.2,3.2078]
[1764771101802,3.3462,3055.2,3054.8,3.2078]
[1764771102100,0.00372498,3055.3,3054.8,3.2078]